{"text_format":"1","workbook":"xlsx","n_sheets":7,"sheets":["Раздел0","Раздел1","Раздел2","Раздел3","Раздел4","Раздел5","Раздел6"],"not_rendered":{"charts":0,"images":0,"macros":0,"external_links":0,"defined_names":109,"comments":0,"pivot_tables":0},"unopened":[],"bounds":{"document_bytes":16777216,"sheet_cells":100000,"rows_first":2000,"rows_last":500,"rows_between":2000,"halvings":0,"cell_chars":16384,"cell_head_chars":4096},"cells_cut":0,"cells_raw":0,"read":"whole","date_system":"1900"}

{"sheet":"Раздел0","index":0,"n_rows":29,"n_cols":14,"rows_kept":29,"cut":false,"hidden":false,"merged":[[30,0,30,15],[1,0,29,0],[1,15,29,15],[27,11,27,14],[13,10,13,11],[14,10,14,11],[15,10,15,11],[16,10,16,11],[17,10,17,11],[28,1,28,2],[28,3,28,6],[23,4,23,14],[22,1,22,5],[18,10,18,11],[19,10,19,11],[25,1,26,2],[28,11,28,14],[20,10,20,11],[27,7,27,10],[28,7,28,10],[26,7,26,10],[22,6,22,14],[25,3,25,14],[20,13,20,14],[20,2,20,9],[26,3,26,6],[23,1,23,3],[0,0,0,15],[27,3,27,6],[27,1,27,2],[15,1,15,9],[18,1,18,9],[18,13,18,14],[26,11,26,14],[17,13,17,14],[1,3,1,13],[5,3,5,13],[9,3,9,13],[10,3,10,13],[3,3,3,13],[7,4,7,12],[12,10,12,11],[14,2,14,9],[12,13,12,14],[16,2,16,9],[12,1,12,9],[13,13,13,14],[14,13,14,14],[15,13,15,14],[16,13,16,14],[13,1,13,9]]}
[]
[null,null,null,"ФЕДЕРАЛЬНОЕ СТАТИСТИЧЕСКОЕ НАБЛЮДЕНИЕ"]
[]
[null,null,null,"КОНФИДЕНЦИАЛЬНОСТЬ ГАРАНТИРУЕТСЯ ПОЛУЧАТЕЛЕМ ИНФОРМАЦИИ"]
[]
[null,null,null,"Нарушение порядка представления статистической информации, а равно представление недостоверной статистической информации\nвлечет ответственность, установленную статьей 13.19 Кодекса Российской Федерации об административных правонарушениях\nот 30.12.2001 № 195-ФЗ, а также статьей 3 Закона Российской Федерации от 13.05.92 № 2761-1 “Об ответственности за нарушение\nпорядка представления государственной статистической отчетности”"]
[]
[null,null,null,null,"ВОЗМОЖНО ПРЕДОСТАВЛЕНИЕ В ЭЛЕКТРОННОМ ВИДЕ"]
[]
[null,null,null,"СВЕДЕНИЯ О ФИЗИЧЕСКОЙ КУЛЬТУРЕ И СПОРТЕ"]
[null,null,null,"по состоянию на 31 декабря 2012 года"]
[]
[null,"Предоставляют:",null,null,null,null,null,null,null,null,"Сроки предоставления",null,null,"Форма № 1-ФК"]
[null,"юридические лица, осуществляющие деятельность по физической культуре и спорту:",null,null,null,null,null,null,null,null,"15 января",null,null,"Приказ Росстата:"]
[null,"-","районному (городскому) органу управления физической культурой и спортом",null,null,null,null,null,null,null," после отчетного периода",null,null,"Об утверждении формы"]
[null,"районные (городские) органы управления физической культурой и спортом:",null,null,null,null,null,null,null,null,"25 января",null,null,"от 23.10.2012 № 562"]
[null,"-","органу исполнительной власти субъектов Российской Федерации в области",null,null,null,null,null,null,null,"после отчетного периода",null,null,"О внесении изменений (при наличии)"]
[null,null,"физкультуры и спорта",null,null,null,null,null,null,null,null,null,null,"от  __________ № ___"]
[null,"органы исполнительной власти субъекта Российской Федерации в области",null,null,null,null,null,null,null,null,"10 февраля",null,null,"от  __________ № ___"]
[null,"физкультуры и спорта:",null,null,null,null,null,null,null,null,"после отчетного периода"]
[null,"-","Минспорту России",null,null,null,null,null,null,null,null,null,null,"Годовая"]
[null,null," "]
[null,"Наименование отчитывающейся организации",null,null,null,null,"муниципальное дошкольное образовательное учреждение детский сад комбинированного вида № 4 \"Сказка\" ЗАТО г.Заозерска Мурманской области"]
[null,"Почтовый адрес",null,null,"184310, Мурманская область, город Заозерск, улица Флотская, дом № 7                                                      "]
[]
[null,"Код\nформы\nпо ОКУД",null,"Код"]
[null,null,null,"отчитывающейся организации\nпо ОКПО"]
[null,1,null,2,null,null,null,3,null,null,null,4]
[null,"0609402",null,51696204]

{"sheet":"Раздел1","index":1,"n_rows":22,"n_cols":14,"rows_kept":22,"cut":false,"hidden":false,"merged":[[0,0,0,14],[23,0,23,14],[1,0,22,0],[1,14,22,14],[2,1,2,5],[4,4,5,4],[4,6,4,7],[3,2,5,2],[3,1,5,1],[3,3,5,3],[3,4,3,13],[4,5,5,5],[4,8,5,8],[4,9,4,11],[4,12,5,12],[4,13,5,13]]}
[]
[null,"Раздел I. Кадры"]
[null,null,null,null,null,null,null,null,null,null,null,null,null,"Код по ОКЕИ: человек - 792"]
[null,"Штатные работники физической культуры и спорта","№\nстроки","Всего","из общей численности штатных работников (гр. 3):"]
[null,null,null,null,"специалисты, впервые приступившие к работе в области физической культуры и спорта в отчетный период","в сельской местности","со специальным образованием",null,"имеющие ученую степень","в возрасте",null,null,"женщины","количество вакансий"]
[null,null,null,null,null,null,"высшим","средним",null,"до 30 лет","31-60 лет","старше 60 лет"]
[null,1,2,3,4,5,6,7,8,9,10,11,12,13]
[null,"Всего штатных работников физической культуры и спорта (сумма строк 02-15)",1,{"$f":"SUM(D9:D22)","v":1},{"$f":"SUM(E9:E22)","v":0},0,1,0,0,0,1,0,1,0]
[null,"      в том числе:\nдошкольных образовательных учреждений, осуществляющих работу по физической культуре и спорту",2,1,null,null,1,null,null,null,1,null,1]
[null,"общеобразовательных учреждений, осуществляющие работу по физической культуре и спорту",3]
[null,"учреждений начального профессионального образования, осуществляющие работу по физической культуре и спорту",4]
[null,"учреждений среднего профессионального образования, осуществляющие работу по физической культуре и спорту",5]
[null,"учреждений высшего профессионального образования, осуществляющие работу по физической культуре и спорту",6]
[null,"учреждений дополнительного образования детей, осуществляющие работу по физической культуре и спорту",7]
[null,"центры спортивной подготовки, школы высшего спортивного мастерства",8]
[null,"физической культуры и спорта предприятий, организаций и учреждений",9]
[null,"физической культуры и спорта спортивных сооружений",10]
[null,"физической культуры и спорта фитнес-клубов",11]
[null,"физической культуры и спорта по месту жительства",12]
[null,"физической культуры и спорта аппаратов физкультурно-спортивных организаций всех уровней",13]
[null,"физической культуры и спорта органов  управления физической культурой и спортом всех уровней",14]
[null,"Другие",15]

{"sheet":"Раздел2","index":2,"n_rows":30,"n_cols":18,"rows_kept":30,"cut":false,"hidden":false,"merged":[[31,0,31,18],[1,0,30,0],[1,18,30,18],[1,1,1,15],[3,14,6,14],[3,1,6,1],[3,2,6,2],[5,5,5,9],[5,10,6,10],[4,5,4,11],[0,0,0,18],[3,16,7,16],[3,17,7,17],[3,15,6,15],[3,12,6,12],[3,13,6,13],[3,3,6,3],[3,4,3,11],[5,11,6,11],[4,4,6,4]]}
[]
[null,"Раздел II. Физкультурно-оздоровительная работа"]
[null,null,null,null,null,null,null,null,null,null,null,null,null,null,null,"Код по ОКЕИ: единица - 642; человек - 792"]
[null,"Учреждения, предприятия, объединения, организации","№\nстроки","Количество учрежде-\nний, предприя-\nтий, организа-\nций, всего (ед)","Численность занимающихся (чел)",null,null,null,null,null,null,null,"Посещают учебные занятия по физической культуре (чел)","Числен-\nность учащихся, студентов, отнесенных по состоя-\nнию здо-\nровья к спецмед-\nгруппе (чел)","из них\nпосещают занятия \nпо физи-\nческой культуре в спецмед-\nгруппе (чел)","из общей численности занимающихся (гр. 4) – на платной основе","Занимаются по видам спорта Раздел5!C6","Женщины по видам спорта Раздел5!D6"]
[null,null,null,null,"Всего","из общей численности занимающихся (гр.4):"]
[null,null,null,null,null,"в возрасте",null,null,null,null,"женщины","в сельской местности"]
[null,null,null,null,null,"до 14 лет","15-17 лет","18-29 лет","30-59 лет","60 и старше"]
[null,1,2,3,4,5,6,7,8,9,10,11,12,13,14,15]
[null,"Всего учреждений, предприятий, объединений, организаций (сумма строк 17, 18, 20, 22, 24, 26-28, 30-32, 34)",16,{"$f":"SUM(D10:D11,D13,D15,D17,D19:D21,D23:D25,D27)","v":1},{"$f":"SUM(E10:E11,E13,E15,E17,E19:E21,E23:E25,E27)","v":0},0,0,0,0,0,0,0,258,2,0,0,{"$f":"Раздел5!D7","v":0},{"$f":"Раздел5!E7","v":0}]
[null,"    в том числе:\nдошкольные образовательные учреждения",17,1," ",null,"Х","Х","Х","Х",null,null,258,2]
[null,"общеобразовательные учреждения",18,null,null,null,null,null,"Х","Х"]
[null,"из них имеющие \nспортивные клубы",19,null,null,null,null,null,"Х","Х",null,null,"Х","X","X"]
[null,"образовательные учреждения начального профессионального образования",20,null,null,null,null,null,"Х","Х"]
[null,"из них имеющие \nспортивные клубы",21,null,null,null,null,null,"Х","Х",null,null,"X","X","X"]
[null,"образовательные учреждения среднего профессионального образования",22,null,null,null,null,null,"Х","Х"]
[null,"из них имеющие \nспортивные клубы",23,null,null,null,null,null,"Х","Х",null,null,"X","X","X"]
[null,"образовательные учреждения высшего профессионального образования",24,null,null,null,null,null,null,"Х"]
[null,"из них имеющие \nспортивные клубы",25,null,null,null,null,null,null,"Х",null,null,"Х","Х","Х"]
[null,"учреждения дополнительного образования детей - всего",26,null,null,null,null,null,null,"Х",null,null,"Х","Х","Х"]
[null,"центры спортивной подготовки, школы высшего спортивного мастерства",27,null,null,null,null,null,null,null,null,null,"Х","Х","Х"]
[null,"предприятия, учреждения, организации",28,null,null,null,null,null,null,null,null,null,"Х","Х","Х"]
[null,"из них имеющие\n спортивные клубы",29,null,null,null,null,null,null,null,null,null,"Х","Х","Х"]
[null,"учреждения и организации при спортивных сооружениях",30,null,null,null,null,null,null,null,null,null,"Х","Х","Х"]
[null,"фитнес-клубы",31,null,null,null,null,null,null,null,null,null,"Х","Х","Х"]
[null,"физкультурно-спортивные клубы по месту жительства",32,null,null,null,null,null,null,null,null,null,"Х","Х","Х"]
[null,"из них детские, подростковые клубы",33,null,null,null,null,null,"Х","Х",null,null,"Х","Х","Х"]
[null,"другие учреждения и организации, в том числе адаптивной физической культуры и спорта",34,null,null,null,null,null,null,null,null,null,"Х","Х","Х"]
[null,"Из общего числа (строка 16) - прошедшие добровольную сертификацию",35,null,null,null,null,null,null,null,null,null,"Х","Х","Х"]
[null,"Из общего числа (строка 16) - в форме малых предприятий",36,null,null,null,null,null,null,null,null,null,"Х","Х","Х"]
[null,"Из общего числа (строка 16) - в сельской местности",37]

{"sheet":"Раздел3","index":3,"n_rows":39,"n_cols":14,"rows_kept":39,"cut":false,"hidden":false,"merged":[[40,0,40,14],[1,0,39,0],[1,14,39,14],[3,3,3,7],[4,8,5,8],[3,12,5,12],[3,13,5,13],[1,1,1,13],[4,9,5,9],[3,1,5,1],[3,2,5,2],[4,10,5,10],[4,11,5,11],[3,8,3,9],[3,10,3,11],[4,4,4,7],[4,3,5,3],[0,0,0,14]]}
[]
[null,"Раздел III. Спортивные сооружения"]
[null,null,null,null,null,null,null,null,null,null,null,null,null,"Код по ОКЕИ: единица - 642; человек - 792"]
[null,"Наименование спортивного\nсооружения","№\nстро-\nки","Количество спортсооружений (ед)",null,null,null,null,"Из общего числа спортивных сооружений (из гр.3)",null,"Единовременная пропускная способность (чел)",null,"Загру-\nженность","Мощность"]
[null,null,null,"Всего","в том числе по формам собственности:",null,null,null,"введены\nв эксплу-\nатацию в\nотчетный\nпериод","в сельской местности","Всего","из них в сельской местности"]
[null,null,null,null,"федераль-\nной","субъектов РФ","муници-\nпальной","другой"]
[null,1,2,3,4,5,6,7,8,9,10,11,12,13]
[null,"Объектов спорта - всего:\n    из них:",38,{"$f":"SUM(D9:D10)","v":0},{"$f":"SUM(E9:E10)","v":0},0,0,0,0,0,0,0,0,0]
[null,"-  арен",39]
[null,"-  физкультурно-оздоровительных комплексов",40]
[null,"Всего спортивных сооружений (сумма строк 42, 43, 46, 51, 52, 55, 56, 62, 63, 64, 68, 69)",41,{"$f":"SUM(D12,D13,D16,D21,D22,D25,D26,D32,D33,D34,D38,D39)","v":0},{"$f":"SUM(E12,E13,E16,E21,E22,E25,E26,E32,E33,E34,E38,E39)","v":0},0,0,0,0,0,0,0,0,0]
[null,"      в том числе:\nСтадионы с трибунами на 1500 мест и более",42]
[null,"Плоскостные спортивные сооружения – всего ",43]
[null,"-  из них футбольные поля",44]
[null,"Площадь плоскостных спортивных сооружений (м2)",45,null,null,null,null,null,null,null,"X","X","X","X"]
[null,"Спортивные залы - всего",46]
[null,"      из них размером:\n- (42 х 24 м)",47]
[null,"- (36 х 18 м), (30 х 18 м) и\n  (30 х 15 м)",48]
[null,"- (24 х 12 м) и (18 х 9 м)",49]
[null,"Площадь спортивных залов (м2)",50,null,null,null,null,null,null,null,"X","X","X","X"]
[null,"Крытые спортивные объекты с искусственным льдом",51]
[null,"Манежи - всего",52]
[null,"      из них:\n- легкоатлетические",53]
[null,"- футбольные",54]
[null,"Велотреки, велодромы",55]
[null,"Плавательные бассейны - всего",56]
[null,"из них:\n- 50 – метровые",57]
[null,"- 25 - метровые",58]
[null,"- для прыжков в воду",59]
[null,"Площадь зеркала воды плавательных бассейнов (м2)",60,null,null,null,null,null,null,null,"X","X","X","X"]
[null,"Из общего числа бассейнов (строка 56) - крытые",61]
[null,"Лыжные базы",62]
[null,"Биатлонные комплексы",63]
[null,"Сооружения для стрелковых видов спорта – всего (сумма строк 65-67)",64,{"$f":"SUM(D35:D37)","v":0},{"$f":"SUM(E35:E37)","v":0},0,0,0,0,0,0,0,0,0]
[null,"в том числе:\n- тиры",65]
[null,"- стрельбища",66]
[null,"- стенды",67]
[null,"Гребные базы и каналы",68]
[null,"Другие спортивные сооружения -\nвсего",69]

{"sheet":"Раздел4","index":4,"n_rows":20,"n_cols":10,"rows_kept":20,"cut":false,"hidden":false,"merged":[[0,0,0,10],[21,0,21,10],[1,0,20,0],[1,10,20,10],[1,1,1,9],[17,1,17,5],[19,1,19,5],[3,1,5,1],[3,2,5,2],[3,3,3,6],[3,7,5,7],[3,8,5,8],[4,3,5,3],[4,4,5,4],[4,5,4,6],[3,9,5,9],[18,1,18,5]]}
[]
[null,"Раздел IV. Финансирование физической культуры и спорта"]
[null,null,null,null,null,null,null,null,null,"Код по ОКЕИ: тысяча рублей - 384 (с одним десятичным знаком)"]
[null,"Статьи расходов","№\nстроки","Фактически выделено бюджетных средств",null,null,null,"Получено из внебюджетных источников","Всего израсходовано на развитие физической культуры и спорта","Из гр.8 по разделу 1100 \"Физическая культура и спорт\" бюджетной классификации Российской Федерации"]
[null,null,null,"Всего","из федерального бюджета","из консолидированного бюджета субъекта Российской Федерации:"]
[null,null,null,null,null,"бюджет субъекта РФ","бюджет муниципального образования"]
[null,1,2,3,4,5,6,7,8,9]
[null,"Расходы - всего",70,{"$f":"SUM(D9:D15)","v":0},{"$f":"SUM(E9:E15)","v":0},0,0,0,0,0]
[null,"из них:\nПроведение спортивных мероприятий",71,{"$f":"SUM(E9:G9)","v":0},null,null,null,null,{"$f":"D9+H9","v":0}]
[null,"Приобретение спортивного оборудования и инвентаря",72,{"$f":"SUM(E10:G10)","v":0},null,null,null,null,{"$f":"D10+H10","v":0}]
[null,"Капитальный ремонт спортсооружений",73,0,null,null,null,null,0]
[null,"Инвестиции на реконструкцию и строительство спортивных сооружений",74,0,null,null,null,null,0]
[null,"Заработная плата раьботников физической культуры и спорта",75,0,null,null,null,null,0]
[null,"На содержание спортивных сооружений",76,0,null,null,null,null,0]
[null,"Другие",77,0,null,null,null,null,0]
[]
[null,"Справочно:"]
[]
[null,"Поступило средств от предоставления платных услуг от занятий\nв клубах, секциях, группах физкультурно - оздоровительной направленности (78)",null,null,null,null,null,"тыс. руб."]
[null,"Поступило средств от проведения спортивно-зрелищных мероприятий (79)",null,null,null,null,null,"тыс. руб."]

{"sheet":"Раздел5","index":5,"n_rows":142,"n_cols":8,"rows_kept":142,"cut":false,"hidden":false,"merged":[[0,0,0,8],[143,0,143,8],[1,0,142,0],[1,8,142,8],[1,1,1,5],[3,1,4,1],[3,2,4,2],[3,3,3,4],[3,5,4,5],[3,6,5,6],[3,7,5,7]]}
[]
[null,"Раздел V. Развитие видов спорта"]
[null,null,null,null,null,"Код по ОКЕИ: человек - 792"]
[null,"Виды спорта","№\nстроки","Численность занимающихся (чел)",null,"Число штатных тренеров-преподавателей","Всего занимаются Раздел2!D8","Женщины занимаются Раздел2!J8"]
[null,null,null,"Всего","из них женщины"]
[null,1,2,3,4,5]
[null,"Всего видов спорта (сумма строк 81 - 215)",80,{"$f":"SUM(D8:D142)","v":0},{"$f":"SUM(E8:E142)","v":0},{"$f":"SUM(F8:F142)","v":0},{"$f":"Раздел2!E9","v":0},{"$f":"Раздел2!K9","v":0}]
[null,"      в том числе:\nАвиамодельный спорт",81]
[null,"Автомобильный спорт",82]
[null,"Автомодельный спорт",83]
[null,"Айкидо",84]
[null,"Айсшток",85]
[null,"Академическая гребля",86]
[null,"Акробатический рок-н-ролл",87]
[null,"Альпинизм",88]
[null,"Американский футбол",89]
[null,"Армспорт",90]
[null,"Бадминтон",91]
[null,"Баскетбол",92]
[null,"Бейсбол",93]
[null,"Биатлон",94]
[null,"Бильярдный спорт",95]
[null,"Бобслей",96]
[null,"Бодибилдинг",97]
[null,"Бокс",98]
[null,"Борьба на поясах",99]
[null,"Боулинг",100]
[null,"Велоспорт ВМХ",101]
[null,"Велоспорт - маунтинбайк",102]
[null,"Велоспорт - трек",103]
[null,"Велоспорт - шоссе",104]
[null,"Вертолетный спорт",105]
[null,"Воздухоплавательный спорт",106]
[null,"Водно-моторный спорт",107]
[null,"Водное поло",108]
[null,"Воднолыжный спорт",109]
[null,"Волейбол",110]
[null,"Вольная борьба",111]
[null,"Восточное боевое единоборство",112]
[null,"Гандбол",113]
[null,"Гиревой спорт",114]
[null,"Го",115]
[null,"Гольф",116]
[null,"Горнолыжный спорт",117]
[null,"Городошный спорт",118]
[null,"Гребля на байдарках и каноэ",119]
[null,"Гребной слалом",120]
[null,"Греко-римская борьба",121]
[null,"Дартс",122]
[null,"Джиу-джитсу",123]
[null,"Дзюдо",124]
[null,"Ездовой спорт",125]
[null,"Капоэйра",126]
[null,"Каратэ",127]
[null,"Керлинг",128]
[null,"Кикбоксинг",129]
[null,"Кинологический спорт",130]
[null,"Киокусинкай",131]
[null,"Конный спорт",132]
[null,"Конькобежный спорт",133]
[null,"Корфбол",134]
[null,"Легкая атлетика",135]
[null,"Лыжное двоеборье",136]
[null,"Лыжные гонки",137]
[null,"Морское многоборье",138]
[null,"Мотоциклетный спорт",139]
[null,"Настольный теннис",140]
[null,"Парашютный спорт",141]
[null,"Парусный спорт",142]
[null,"Пауэрлифтинг",143]
[null,"Перетягивание каната",144]
[null,"Петанк",145]
[null,"Плавание",146]
[null,"Планерный спорт",147]
[null,"Подводный спорт",148]
[null,"Полиатлон",149]
[null,"Практическая стрельба",150]
[null,"Прыжки в воду",151]
[null,"Прыжки на батуте",152]
[null,"Прыжки на лыжах с трамплина",153]
[null,"Пулевая стрельба",154]
[null,"Пэйнтбол",155]
[null,"Радиоспорт",156]
[null,"Рафтинг",157]
[null,"Регби",158]
[null,"Регбол",159]
[null,"Роллер спорт",160]
[null,"Рукопашный бой",161]
[null,"Русская лапта",162]
[null,"Рыболовный спорт",163]
[null,"Сават",164]
[null,"Самбо",165]
[null,"Самолетный спорт",166]
[null,"Санный спорт",167]
[null,"Северное многоборье",168]
[null,"Синхронное плавание",169]
[null,"Скалолазание",170]
[null,"Сквош",171]
[null,"Скейтбординг",172]
[null,"Сноуборд",173]
[null,"Современное пятиборье",174]
[null,"Софтбол",175]
[null,"Спорт сверхлегкой авиации",176]
[null,"Спортивная акробатика",177]
[null,"Спортивная аэробика",178]
[null,"Спортивная гимнастика",179]
[null,"Спортивно-прикладное собаководство",180]
[null,"Спортивное ориентирование",181]
[null,"Спортивный бридж",182]
[null,"Спортивный туризм",183]
[null,"Стендовая стрельба",184]
[null,"Стилевое каратэ",185]
[null,"Стрельба из арбалета",186]
[null,"Стрельба из лука",187]
[null,"Судомодельный спорт",188]
[null,"Сумо",189]
[null,"Тайский бокс",190]
[null,"Танцевальный спорт",191]
[null,"Теннис",192]
[null,"Триатлон",193]
[null,"Тхэквондо",194]
[null,"Тяжелая атлетика",195]
[null,"Универсальный бой",196]
[null,"Ушу",197]
[null,"Фехтование",198]
[null,"Фигурное катание на коньках",199]
[null,"Фитнес-аэробика",200]
[null,"Флорбол",201]
[null,"Фристайл",202]
[null,"Футбол",203]
[null,"Хоккей",204]
[null,"Хоккей на траве",205]
[null,"Хоккей с мячом",206]
[null,"Художественная гимнастика",207]
[null,"Черлидинг",208]
[null,"Шахматы",209]
[null,"Шашки",210]
[null,"Эстетическая гимнастика",211]
[null,"Военно-прикладные виды спорта",212]
[null,"Служебно-прикладные виды спорта",213]
[null,"Национальные виды спорта",214]
[null,"Другие виды спорта, признанные в РФ",215]

{"sheet":"Раздел6","index":6,"n_rows":23,"n_cols":8,"rows_kept":23,"cut":false,"hidden":false,"merged":[[0,0,0,8],[24,0,24,8],[1,0,23,0],[1,8,23,8],[1,1,1,5],[3,3,3,5],[22,2,22,3],[18,2,18,3],[19,2,19,3],[8,3,8,5],[4,3,4,5],[15,3,15,5],[5,3,5,5],[21,2,21,3],[7,3,7,5],[6,3,6,5],[9,3,9,5],[12,3,12,5],[11,3,11,5],[14,3,14,5],[13,3,13,5],[10,3,10,5]]}
[]
[null,"Раздел VI. Спортивное мастерство"]
[null,null,null,null,null,"Код по ОКЕИ: человек - 792"]
[null,"Виды спорта","№\nстроки","Всего"]
[null,1,2,3]
[null,"Присвоено званий – всего (сумма строк  217-219)",216,{"$f":"SUM(D7:F9)","v":0}]
[null,"          в том числе:\n- МС",217]
[null,"- МСМК и Гроссмейстер России",218]
[null,"- ЗМС",219]
[null,"Подготовлено за год спортсменов массовых разрядов",220]
[null,"          из них:\n- КМС",221]
[null,"- I разряд",222]
[null,"Присвоено званий - ЗТР",223]
[null,"Присвоено званий - ЗРФК",224]
[null,"Присуждены другие государственные почетные звания и награды",225]
[null,"Присуждены почетные звания и награды субъекта РФ",226]
[]
[]
[null,"Должностное лицо, ответственное за предоставление статистической информации (лицо, уполномоченное предоставлять статистическую информацию от имени юридического лица)","заведующая",null,null,"Е.В. Маркина "]
[null,null,"(должность)",null,null,"(Ф.И.О.)",null,"(подпись)"]
[]
[null,null,"(81556)3-20-47",null,null,{"$f":"NOW()","v":"2012-12-17T09:53:13.090"}]
[null,null,"(номер контактного телефона)",null,null,"(дата составления документа)"]